fUSD/lending_fUSD_20250606
["ID","MTS","AMOUNT","RATE_DAILY","PERIOD"]
[364644603,1749175860771,-498.5135665,0.00030328,7]
[364644604,1749175860781,-480.0,0.00030328,7]
[364644605,1749175860790,-466.15749222,0.00030328,7]
[364644606,1749175860799,-480.0,0.00030328,7]
[364644607,1749175860808,-480.0,0.00030328,7]
[364644608,1749175860817,-389.4911341,0.00030328,7]
[364644609,1749175860827,-480.0,0.00030328,7]
[364644610,1749175860836,-482.60838339,0.00030328,7]
[364644611,1749175860845,-480.0,0.00030328,7]
[364644612,1749175860855,-154.75855,0.00030328,7]
[364644613,1749175860865,-480.0,0.00030328,7]
[364644614,1749175860874,-484.06015524,0.00030328,7]
[364644615,1749175860883,-480.0,0.00030328,7]
[364644616,1749175860892,-483.52040628,0.00030328,7]
[364644617,1749175860901,-480.0,0.00030328,7]
[364644618,1749175860912,-480.0,0.00030328,7]
[364644619,1749175860921,-480.0,0.00030328,7]
[364644620,1749175860930,-480.0,0.00030328,7]
[364644621,1749175860939,-405.36706035,0.00030328,7]
[364644622,1749175860949,-490.58837411,0.00030328,7]
[364644623,1749175860958,-609.8,0.00030328,7]
[364644624,1749175860967,-588.44,0.00030328,7]
[364644625,1749175860977,-480.0,0.00030328,7]
[364644626,1749175860986,-284.224494,0.00030328,7]
[364644627,1749175860995,-284.224494,0.00030328,7]
[364644628,1749175861005,-480.0,0.00030328,7]
[364644629,1749175861015,-480.0,0.00030328,7]
[364644630,1749175861027,-284.224494,0.00030328,7]
[364644631,1749175861036,-284.224494,0.00030328,7]
[364644632,1749175861046,-487.17884911,0.00030328,7]
[364644633,1749175861055,-373.95601848,0.00030328,7]
[364644634,1749175861064,-549.4968684,0.00030328,7]
[364644635,1749175861074,-151.0,0.00030328,7]
[364644636,1749175861084,-151.0,0.00030328,7]
[364644637,1749175861094,-671.35,0.00030328,7]
[364644638,1749175861103,-223.25315151,0.00030328,7]
[364644639,1749175861112,-480.0,0.00030328,7]
[364644640,1749175861122,-151.0,0.00030328,7]
[364644641,1749175861131,-186.44349,0.00030328,7]
[364644642,1749175861140,-498.97521538,0.00030328,7]
[364644643,1749175861149,-438.52609529,0.00030328,7]
[364644644,1749175861158,-154.288431,0.00030328,7]
[364644645,1749175861170,-154.288431,0.00030328,7]
[364644646,1749175861179,-151.0,0.00030328,7]
[364644647,1749175861188,-151.0,0.00030328,7]
[364644648,1749175861198,-499.36,0.00030328,7]
[364644649,1749175861207,-480.0,0.00030328,7]
[364644650,1749175861217,-154.288431,0.00030328,7]
[364644651,1749175861227,-154.288431,0.00030328,7]
[364644652,1749175861236,-504.07006563,0.00030328,7]
[364644653,1749175861245,-480.0,0.00030328,7]
[364644654,1749175861255,-480.0,0.00030328,7]
[364644655,1749175861264,-480.0,0.00030328,7]
[364644656,1749175861273,-480.0,0.00030328,7]
[364644657,1749175861284,-480.0,0.00030328,7]
[364644658,1749175861293,-483.11997269,0.00030328,7]
[364644659,1749175861303,-762.24,0.00030328,7]
[364644660,1749175861313,-504.79351529,0.00030328,7]
[364644661,1749175861326,-514.12567092,0.00030328,7]
[364644662,1749175861335,-673.79,0.00030328,7]
[364644663,1749175861345,-730.88,0.00030328,7]
[364644664,1749175861355,-396.72948484,0.00030328,7]
[364644665,1749175861365,-250.0,0.00030328,7]
[364644666,1749175861375,-151.0,0.00030328,7]
[364644667,1749175861385,-175.085482,0.00030328,7]
[364644668,1749175861396,-495.17630037,0.00030328,7]
[364644669,1749175861406,-480.0,0.00030328,7]
[364644670,1749175861419,-480.0,0.00030328,7]
[364644671,1749175861429,-480.0,0.00030328,7]
[364644672,1749175861438,-480.0,0.00030328,7]
[364644673,1749175861448,-480.0,0.00030328,7]
[364644674,1749175861457,-480.0,0.00030328,7]
[364644675,1749175861466,-534.76666242,0.00030328,7]
[364644676,1749175861475,-480.0,0.00030328,7]
[364644677,1749175861485,-480.0,0.00030328,7]
[364644678,1749175861495,-480.0,0.00030328,7]
[364644679,1749175861504,-530.33,0.00030328,7]
[364644680,1749175861513,-2258.08626,0.00030328,7]
[364644681,1749175861522,-2258.08626,0.00030328,7]
[364644682,1749175861531,-158.156702,0.00030328,7]
[364644683,1749175861540,-158.156702,0.00030328,7]
[364644684,1749175861550,-518.6,0.00030328,7]
[364644685,1749175861559,-214.159275,0.00030328,7]
[364644686,1749175861567,-214.159275,0.00030328,7]
[364644687,1749175861576,-2258.08626,0.00030328,7]
[364644688,1749175861586,-2258.08626,0.00030328,7]
[364644689,1749175861595,-158.156702,0.00030328,7]
[364644690,1749175861604,-480.0,0.00030328,7]
[364644691,1749175861612,-158.156702,0.00030328,7]
[364644692,1749175861622,-480.0,0.00030328,7]
[364644693,1749175861631,-214.159275,0.00030328,7]
[364644694,1749175861641,-214.159275,0.00030328,7]
[364644695,1749175861650,-480.0,0.00030328,7]
[364644696,1749175861662,-480.0,0.00030328,7]
[364644697,1749175861671,-480.0,0.00030328,7]
[364644698,1749175861681,-480.0,0.00030328,7]
[364644699,1749175861691,-480.0,0.00030328,7]
[364644700,1749175861700,-480.0,0.00030328,7]
[364644701,1749175861710,-496.14,0.00030328,7]
[364644702,1749175861719,-466.40125656,0.00030328,7]
[364644703,1749175861729,-928.01,0.00030328,7]
[364644704,1749175861738,-480.0,0.00030328,7]
[364644705,1749175861747,-480.0,0.00030328,7]
[364644706,1749175861756,-492.57918322,0.00030328,7]
[364644707,1749175861766,-480.0,0.00030328,7]
[364644708,1749175861775,-480.0,0.00030328,7]
[364644709,1749175861785,-480.0,0.00030328,7]
[364644710,1749175861794,-480.0,0.00030328,7]
[364644711,1749175861803,-480.0,0.00030328,7]
[364644712,1749175861812,-483.59355788,0.00030328,7]
[364644713,1749175861822,-480.0,0.00030328,7]
[364644714,1749175861831,-480.0,0.00030328,7]
[364644715,1749175861841,-480.0,0.00030328,7]
[364644716,1749175861850,-492.0566152,0.00030328,7]
[364644717,1749175861859,-532.37047486,0.00030328,7]
[364644718,1749175861868,-480.0,0.00030328,7]
[364644719,1749175861878,-480.0,0.00030328,7]
[364644720,1749175861887,-480.0,0.00030328,7]
[364644721,1749175861897,-478.52908556,0.00030328,7]
[364644722,1749175861906,-480.0,0.00030328,7]
[364644723,1749175861919,-505.22433107,0.00030328,7]
[364644724,1749175861928,-234.94017272,0.00030328,7]
[364644725,1749175861947,-245.05982728,0.00030328,7]
[364644726,1749175861956,-126.20022772,0.00030328,7]
[364644727,1749175861971,-353.79977228,0.00030328,7]
[364644728,1749175861980,-216.37614722,0.00030328,7]
[364644729,1749175862003,-829.02,0.00030164,7]
[364644730,1749175862013,-480.0,0.00030164,7]
[364644731,1749175862022,-275.06839013,0.00030328,7]
[364644732,1749175862031,-480.0,0.00030328,7]
[364644733,1749175862041,-480.0,0.00030328,7]
[364644734,1749175862050,-480.75027024,0.00030328,7]
[364644735,1749175862059,-480.0,0.00030328,7]
[364644736,1749175862068,-480.0,0.00030328,7]
[364644737,1749175862078,-151.0,0.00030328,7]
[364644738,1749175862087,-151.0,0.00030328,7]
[364644739,1749175862097,-480.0,0.00030328,7]
[364644740,1749175862106,-480.0,0.00030328,7]
[364644741,1749175862115,-480.0,0.00030328,7]
[364644742,1749175862124,-151.0,0.00030328,7]
[364644743,1749175862134,-151.0,0.00030328,7]
[364644744,1749175862143,-480.0,0.00030328,7]
[364644745,1749175862152,-918.73,0.00030328,7]
[364644746,1749175862162,-431.06526048,0.00030328,7]
[364644747,1749175862172,-500.74713263,0.00030328,7]
[364644748,1749175862182,-480.0,0.00030328,7]
[364644749,1749175862191,-480.0,0.00030328,7]
[364644750,1749175862201,-596.89242783,0.00030328,7]
[364644751,1749175862210,-480.0,0.00030328,7]
[364644752,1749175862220,-480.0,0.00030328,7]
[364644753,1749175862230,-480.0,0.00030328,7]
[364644754,1749175862239,-851.47,0.00030328,7]
[364644755,1749175862249,-1300.39,0.00030328,7]
[364644756,1749175862258,-480.0,0.00030328,7]
[364644757,1749175862267,-480.0,0.00030328,7]
[364644758,1749175862277,-480.0,0.00030328,7]
[364644759,1749175862286,-480.0,0.00030328,7]
[364644760,1749175862295,-480.0,0.00030328,7]
[364644761,1749175862304,-399.21909071,0.00030328,7]
[364644762,1749175862313,-151.0,0.00030328,7]
[364644763,1749175862327,-151.0,0.00030328,7]
[364644764,1749175862336,-809.13,0.00030328,7]
[364644765,1749175862345,-480.0,0.00030328,7]
[364644766,1749175862354,-483.51968065,0.00030328,7]
[364644767,1749175862365,-505.24451909,0.00030328,7]
[364644768,1749175862377,-480.0,0.00030328,7]
[364644769,1749175862389,-575.84,0.00030328,7]
[364644770,1749175862406,-1478.98,0.00030328,7]
[364644771,1749175862416,-480.0,0.00030328,7]
[364644772,1749175862425,-480.0,0.00030328,7]
[364644773,1749175862434,-1339.16,0.00030328,7]
[364644774,1749175862443,-151.0,0.00030328,7]
[364644775,1749175862452,-151.0,0.00030328,7]
[364644776,1749175862461,-1061.49,0.00030328,7]
[364644777,1749175862470,-757.49,0.00030328,7]
[364644778,1749175862479,-480.0,0.00030328,7]
[364644779,1749175862488,-480.0,0.00030328,7]
[364644780,1749175862498,-480.0,0.00030328,7]
[364644781,1749175862507,-807.34,0.00030328,7]
[364644782,1749175862516,-990.88,0.00030328,7]
[364644783,1749175862525,-562.47,0.00030328,7]
[364644784,1749175862534,-480.0,0.00030328,7]
[364644785,1749175862543,-480.0,0.00030328,7]
[364644786,1749175862554,-151.0,0.00030328,7]
[364644787,1749175862563,-1814.19,0.00030328,7]
[364644788,1749175862572,-151.0,0.00030328,7]
[364644789,1749175862581,-1464.92,0.00030328,7]
[364644790,1749175862591,-480.0,0.00030328,7]
[364644791,1749175862600,-480.0,0.00030328,7]
[364644792,1749175862609,-480.0,0.00030328,7]
[364644793,1749175862619,-480.0,0.00030328,7]
[364644794,1749175862628,-480.0,0.00030328,7]
[364644795,1749175862637,-1213.39,0.00030328,7]
[364644796,1749175862647,-480.0,0.00030328,7]
[364644797,1749175862656,-480.0,0.00030328,7]
[364644798,1749175862665,-681.97,0.00030328,7]
[364644799,1749175862674,-930.486682,0.00030328,7]
[364644800,1749175862683,-930.486682,0.00030328,7]
[364644801,1749175862692,-151.0,0.00030328,7]
[364644802,1749175862702,-151.0,0.00030328,7]
[364644803,1749175862711,-884.81,0.00030328,7]
[364644804,1749175862721,-834.05,0.00030328,7]
[364644805,1749175862730,-930.486682,0.00030328,7]
[364644806,1749175862739,-930.486682,0.00030328,7]
[364644807,1749175862748,-480.0,0.00030328,7]
[364644808,1749175862758,-768.07822052,0.00030328,7]
[364644809,1749175862768,-928.11,0.00030328,7]
[364644810,1749175862777,-379.05313272,0.00030328,7]
[364644811,1749175862957,-100.94686728,0.00030328,7]
[364644812,1749175862967,-151.0,0.00030328,7]
[364644813,1749175862977,-151.0,0.00030328,7]
[364644814,1749175862987,-480.0,0.00030328,7]
[364644815,1749175862996,-151.0,0.00030328,7]
[364644816,1749175863006,-151.0,0.00030328,7]
[364644817,1749175863016,-861.34,0.00030328,7]
[364644818,1749175863026,-480.0,0.00030328,7]
[364644819,1749175863036,-430.573771,0.00030328,7]
[364644820,1749175863300,-506.77,0.00028181,2]
[364644821,1749175863310,-486.52949432,0.00030164,7]
[364644822,1749175863323,-38.38447358,0.00030328,7]
[364644823,1749175863333,-640.80242471,0.00030328,7]
[364644824,1749176236051,1826.6,0.00035616,120]
[364644827,1749176444336,3202.7521089,0.0003561,120]
[364644829,1749176488374,150.0,0.000261,120]
[364644830,1749176512042,150.0,0.0003,120]
[364644831,1749176514424,5354.0,0.00035616,120]
[364644832,1749176514949,150.0,0.0003,120]
[364644835,1749176524580,179.38,0.00013699,2]
[364644836,1749176530632,150.0,0.0003561,120]
[364644837,1749176564431,150.0,0.00027,120]
[364644838,1749176571677,150.0,0.00029,120]
[364644839,1749176578553,150.0,0.00031,120]
[364644840,1749176581515,10000.0,0.00035616,120]
[364644841,1749176618569,150.0,0.00033,120]
[364644842,1749176618619,150.0,0.00035,120]
[364644844,1749176683347,150.0,0.00027,120]
[364644845,1749176698719,150.0,0.00029,120]
[364644846,1749176708249,1551.30475581,0.0002,2]
[364644847,1749176708272,2853.7170407,0.0002,2]
[364644848,1749176708297,2853.7170407,0.0002,2]
[364644849,1749176708320,2853.7170407,0.0002,2]
[364644850,1749176708345,2853.7170407,0.0002,2]
[364644851,1749176708369,2853.7170407,0.0002,2]
[364644852,1749176715779,150.0,0.00031,120]
[364644853,1749176735197,150.0,0.00033,120]
[364644855,1749176786580,150.0,0.00034,120]
[364644856,1749176809540,150.0,0.00028,120]
[364644857,1749176818186,868.25057374,0.00035,120]
[364644859,1749176820476,150.0,0.00029,120]
[364644860,1749176825487,150.0,0.0003,120]
[364644862,1749176831066,341.89216883,0.0002301,120]
[364644864,1749176832464,150.0,0.00031,120]
[364644867,1749176849247,150.0,0.00033,120]
[364644868,1749176866760,150.0,0.00033,120]
[364644869,1749176876227,150.0,0.00027,120]
[364644870,1749176881091,150.0,0.00028,120]
[364644871,1749176886303,150.0,0.00029,120]
[364644872,1749176893552,150.0,0.0003,120]
[364644873,1749176900212,150.0,0.00031,120]
[364644874,1749176910125,150.0,0.00032,120]
[364644875,1749176916120,150.0,0.00033,120]
[364644876,1749176918880,1413.439999,0.000151,2]
[364644879,1749176924370,150.0,0.00034,120]
[364644880,1749176949847,150.0,0.00035,120]
[364644884,1749176965196,190.0,0.00035,120]
[364644892,1749176982349,150.0,0.00035,120]
[364644893,1749176997531,313.0,0.00035616,120]
[364644894,1749177002697,150.0,0.00035,120]
[364644897,1749177032143,-56791.57598746,0.0002,2]
[364644916,1749177037919,-1291.95,0.0002,2]
[364644917,1749177038028,-409.69399111,0.0002,2]
[364644918,1749177038039,-300.0,0.0002,2]
[364644919,1749177038048,-151.57802377,0.000205,2]
[364644920,1749177038058,-200.38531329,0.000244,11]
[364644921,1749177038068,-200.38531325,0.000244,11]
[364644922,1749177038078,-200.38531325,0.000244,11]
[364644923,1749177038091,-200.38531325,0.000244,11]
[364644924,1749177038189,-200.38531325,0.000244,11]
[364644925,1749177038199,-200.38531325,0.000247,11]
[364644926,1749177038210,-500.0,0.00024932,2]
[364644927,1749177038220,-461.6556,0.00025,2]
[364644928,1749177038230,-200.38531325,0.0002546,13]
[364644929,1749177038239,-581.53607335,0.00026079,2]
[364644930,1749177038248,-304.21,0.0002608,2]
[364644931,1749177038257,-302.62,0.00026116,2]
[364644932,1749177038266,-302.27,0.00026116,2]
[364644933,1749177038275,-200.38531325,0.0002622,14]
[364644934,1749177038284,-301.32,0.00026401,2]
[364644935,1749177038293,-777.57,0.00026413,2]
[364644936,1749177038303,-200.38531325,0.0002698,16]
[364644937,1749177038312,-641.43259006,0.00027255,2]
[364644939,1749177038322,-500.0,0.00027397,2]
[364644941,1749177038331,-500.0,0.00027397,2]
[364644943,1749177038342,-500.0,0.00027397,2]
[364644945,1749177038351,-500.0,0.00027397,2]
[364644947,1749177038360,-500.0,0.00027397,2]
[364644949,1749177038370,-500.0,0.00027397,2]
[364644951,1749177038379,-500.0,0.00027397,2]
[364644953,1749177038388,-500.0,0.00027397,2]
[364644955,1749177038397,-584.68100326,0.00027397,2]
[364644957,1749177038407,-500.0,0.00027397,2]
[364644959,1749177038416,-200.38531325,0.0002774,17]
[364644961,1749177038426,-152.27,0.00027945,2]
[364644963,1749177038435,-500.0,0.00028,2]
[364644965,1749177038446,-150.0,0.00028063,7]
[364644967,1749177038455,-169.7,0.00028073,2]
[364644969,1749177038464,-157.62,0.00028078,2]
[364644971,1749177038474,-4796.2537072,0.00028081,2]
[364644973,1749177038483,-325.65,0.00028098,2]
[364644975,1749177038492,-158.08,0.00028136,2]
[364644976,1749177038502,-1000.0,0.00028186,2]
[364644978,1749177038511,-1483.61,0.00028267,30]
[364644980,1749177038521,-200.38531325,0.000285,19]
[364644983,1749177038531,-1015.60760236,0.00028644,2]
[364644984,1749177038540,-151.0,0.00028644,2]
[364644986,1749177038550,-207.4,0.00028644,2]
[364644988,1749177038560,-777.57,0.00028677,2]
[364644990,1749177038570,-234.2337816,0.00028907,2]
[364644992,1749177038579,-23519.8,0.00028988,2]
[364644994,1749177038589,-160.54,0.00029,2]
[364644996,1749177038599,-303.31,0.00029007,2]
[364644998,1749177038609,-301.24,0.00029092,2]
[364645000,1749177038618,-303.66,0.00029095,2]
[364645002,1749177038628,-303.08,0.00029096,2]
[364645004,1749177038638,-150.0,0.00029108,2]
[364645006,1749177038647,-303.88,0.00029112,2]
[364645008,1749177038656,-150.0,0.00029113,2]
[364645010,1749177038665,-300.11,0.00029122,2]
[364645012,1749177038675,-150.0,0.00029125,2]
[364645014,1749177038684,-150.0,0.00029176,2]
[364645016,1749177038693,-303.03,0.0002918,2]
[364645018,1749177038703,-303.03,0.00029181,2]
[364645020,1749177038715,-301.0,0.00029181,2]
[364645022,1749177038725,-302.66,0.00029181,2]
[364645024,1749177038734,-300.31,0.00029181,2]
[364645025,1749177038743,-150.0,0.00029202,2]
[364645027,1749177038754,-200.38531325,0.0002926,20]
[364645029,1749177038763,-150.0,0.00029367,2]
[364645031,1749177038772,-150.0,0.00029392,2]
[364645033,1749177038782,-150.0,0.00029413,2]
[364645035,1749177038792,-421.937026,0.00029418,6]
[364645037,1749177038802,-207.0,0.00029482,2]
[364645039,1749177038812,-150.0,0.00029633,2]
[364645041,1749177038822,-150.0,0.00029691,2]
[364645043,1749177038832,-150.0,0.00029799,2]
[364645045,1749177038841,-150.0,0.00029817,2]
[364645047,1749177038850,-150.0,0.00029855,2]
[364645050,1749177038860,-169.7,0.00029945,2]
[364645051,1749177038870,-150.0,0.00029981,2]
[364645053,1749177038879,-500.0,0.0003,2]
[364645055,1749177038888,-150.30832703,0.0003,60]
[364645057,1749177038897,-300.0,0.0003,30]
[364645059,1749177038906,-163.2,0.00030001,2]
[364645061,1749177038915,-163.2,0.00030001,2]
[364645063,1749177038925,-163.2,0.00030001,2]
[364645065,1749177038934,-163.2,0.00030001,2]
[364645067,1749177038944,-163.2,0.00030001,2]
[364645069,1749177038953,-1559.59,0.00030001,2]
[364645071,1749177038962,-163.2,0.00030001,2]
[364645073,1749177038972,-150.0,0.00030007,2]
[364645075,1749177038981,-150.0,0.00030013,2]
[364645077,1749177038991,-156.587,0.00030013,2]
[364645079,1749177039000,-215.0738,0.00030013,2]
[364645081,1749177039010,-200.38531325,0.0003002,22]
[364645083,1749177039018,-461.8446,0.00030044,2]
[364645085,1749177039028,-378.43667939,0.00030054,2]
[364645087,1749177039037,-217.15061384,0.00030054,2]
[364645089,1749177039046,-345.86987959,0.00030064,2]
[364645091,1749177039055,-200.0,0.00030085,2]
[364645093,1749177039065,-150.0,0.00030099,2]
[364645095,1749177039074,-379.01,0.000301,2]
[364645097,1749177039084,-1009.0,0.000301,2]
[364645099,1749177039093,-170.54,0.00030123,2]
[364645101,1749177039103,-378.43667934,0.00030128,2]
[364645103,1749177039112,-161.44,0.00030137,80]
[364645105,1749177039121,-345.86987957,0.00030137,2]
[364645107,1749177039131,-4950.665,0.00030143,25]
[364645109,1749177039140,-204.265,0.00030143,25]
[364645110,1749177039149,-198.54303345,0.00030153,2]
[364645113,1749177039159,-156.63842389,0.00030153,2]
[364645115,1749177039168,-150.0,0.00030154,2]
[364645116,1749177039177,-274733.468981,0.00030154,2]
[364645118,1749177039186,-120826.441254,0.00030154,2]
[364645119,1749177039196,-5034.43505225,0.00030163,2]
[364645120,1749177039206,-215.667741,0.00030164,7]
[364645121,1749177039216,-215.667741,0.00030164,7]
[364645122,1749177039226,-215.667741,0.00030164,7]
[364645123,1749177039236,-215.667741,0.00030164,7]
[364645124,1749177039246,-389.471392,0.00030164,7]
[364645125,1749177039256,-389.471392,0.00030164,7]
[364645126,1749177039265,-151.0,0.00030164,7]
[364645127,1749177039275,-151.0,0.00030164,7]
[364645128,1749177039285,-408.42276974,0.00030164,7]
[364645129,1749177039294,-161.577772,0.00030164,7]
[364645130,1749177039304,-161.577772,0.00030164,7]
[364645131,1749177039314,-161.577772,0.00030164,7]
[364645133,1749177039325,-161.577772,0.00030164,7]
[364645135,1749177039334,-151.0,0.00030164,7]
[364645137,1749177039344,-151.0,0.00030164,7]
[364645139,1749177039354,-151.0,0.00030164,7]
[364645141,1749177039364,-151.0,0.00030164,7]
[364645143,1749177039374,-151.0,0.00030164,7]
[364645145,1749177039384,-151.0,0.00030164,7]
[364645147,1749177039394,-155.68369,0.00030164,7]
[364645149,1749177039404,-1709.980474,0.00030164,7]
[364645151,1749177039414,-1540.569532,0.00030164,7]
[364645153,1749177039423,-480.0,0.00030164,7]
[364645155,1749177039433,-491.19729381,0.00030164,7]
[364645157,1749177039443,-252.968122,0.00030164,7]
[364645159,1749177039452,-215.01831718,0.00030164,7]
[364645161,1749177039461,-480.0,0.00030164,7]
[364645163,1749177039471,-480.0,0.00030164,7]
[364645165,1749177039482,-480.0,0.00030164,7]
[364645167,1749177039493,-480.0,0.00030164,7]
[364645169,1749177039503,-480.0,0.00030164,7]
[364645171,1749177039512,-484.54893855,0.00030164,7]
[364645173,1749177039522,-480.0,0.00030164,7]
[364645176,1749177039531,-480.0,0.00030164,7]
[364645178,1749177039540,-510.37938231,0.00030164,7]
[364645179,1749177039550,-480.0,0.00030164,7]
[364645181,1749177039560,-480.0,0.00030164,7]
[364645183,1749177039571,-480.0,0.00030164,7]
[364645185,1749177039582,-480.0,0.00030164,7]
[364645187,1749177039591,-480.0,0.00030164,7]
[364645189,1749177039601,-480.0,0.00030164,7]
[364645191,1749177039610,-480.0,0.00030164,7]
[364645193,1749177039620,-505.57790014,0.00030164,7]
[364645195,1749177039629,-480.0,0.00030164,7]
[364645197,1749177039638,-480.0,0.00030164,7]
[364645199,1749177039647,-480.0,0.00030164,7]
[364645201,1749177039656,-480.0,0.00030164,7]
[364645203,1749177039666,-480.0,0.00030164,7]
[364645205,1749177039676,-480.0,0.00030164,7]
[364645207,1749177039686,-480.0,0.00030164,7]
[364645210,1749177039696,-480.0,0.00030164,7]
[364645212,1749177039709,-480.0,0.00030164,7]
[364645214,1749177039719,-480.0,0.00030164,7]
[364645216,1749177039728,-698.27,0.00030164,7]
[364645218,1749177039738,-480.0,0.00030164,7]
[364645220,1749177039748,-498.81725262,0.00030164,7]
[364645222,1749177039758,-480.0,0.00030164,7]
[364645224,1749177039767,-480.0,0.00030164,7]
[364645226,1749177039777,-480.0,0.00030164,7]
[364645228,1749177039787,-480.0,0.00030164,7]
[364645230,1749177039797,-480.0,0.00030164,7]
[364645232,1749177039807,-480.0,0.00030164,7]
[364645234,1749177039816,-480.0,0.00030164,7]
[364645236,1749177039825,-478.94249558,0.00030164,7]
[364645238,1749177039834,-486.50379766,0.00030164,7]
[364645240,1749177039843,-480.0,0.00030164,7]
[364645241,1749177039853,-480.0,0.00030164,7]
[364645243,1749177039862,-485.39637477,0.00030164,7]
[364645245,1749177039871,-480.0,0.00030164,7]
[364645247,1749177039880,-480.0,0.00030164,7]
[364645249,1749177039892,-892.61,0.00030164,7]
[364645251,1749177039904,-480.0,0.00030164,7]
[364645253,1749177039914,-480.0,0.00030164,7]
[364645255,1749177039924,-480.0,0.00030164,7]
[364645257,1749177039934,-480.0,0.00030164,7]
[364645260,1749177039944,-480.0,0.00030164,7]
[364645262,1749177039956,-360.02178334,0.00030164,7]
[364645264,1749177039966,-743.58,0.00030164,7]
[364645266,1749177039975,-480.0,0.00030164,7]
[364645268,1749177039985,-480.0,0.00030164,7]
[364645270,1749177039994,-480.0,0.00030164,7]
[364645272,1749177040003,-540.21,0.00030164,7]
[364645274,1749177040013,-480.0,0.00030164,7]
[364645276,1749177040022,-491.96698891,0.00030164,7]
[364645278,1749177040031,-480.0,0.00030164,7]
[364645280,1749177040040,-480.0,0.00030164,7]
[364645282,1749177040050,-480.0,0.00030164,7]
[364645284,1749177040059,-480.0,0.00030164,7]
[364645286,1749177040068,-669.98,0.00030164,7]
[364645288,1749177040077,-508.91116991,0.00030164,7]
[364645290,1749177040086,-480.0,0.00030164,7]
[364645292,1749177040096,-480.0,0.00030164,7]
[364645294,1749177040105,-480.0,0.00030164,7]
[364645296,1749177040114,-480.0,0.00030164,7]
[364645298,1749177040124,-480.0,0.00030164,7]
[364645300,1749177040133,-480.0,0.00030164,7]
[364645302,1749177040142,-480.0,0.00030164,7]
[364645304,1749177040152,-480.0,0.00030164,7]
[364645306,1749177040162,-486.92033859,0.00030164,7]
[364645308,1749177040171,-498.2764031,0.00030164,7]
[364645310,1749177040181,-480.0,0.00030164,7]
[364645312,1749177040191,-480.0,0.00030164,7]
[364645314,1749177040200,-480.0,0.00030164,7]
[364645316,1749177040210,-480.0,0.00030164,7]
[364645318,1749177040220,-486.14,0.00030164,7]
[364645320,1749177040232,-480.0,0.00030164,7]
[364645322,1749177040242,-480.0,0.00030164,7]
[364645324,1749177040252,-480.0,0.00030164,7]
[364645326,1749177040261,-480.0,0.00030164,7]
[364645328,1749177040271,-480.0,0.00030164,7]
[364645330,1749177040280,-480.0,0.00030164,7]
[364645332,1749177040289,-480.0,0.00030164,7]
[364645334,1749177040299,-480.0,0.00030164,7]
[364645335,1749177040311,-480.0,0.00030164,7]
[364645338,1749177040322,-480.0,0.00030164,7]
[364645340,1749177040332,-480.0,0.00030164,7]